fUST/lending_fUST_20251124
["ID","MTS","AMOUNT","RATE_DAILY","PERIOD"]
[394766319,1763932248023,-151.0,0.00021354,2]
[394766320,1763932248031,-151.0,0.00021354,2]
[394766322,1763932248041,-151.0,0.00021354,2]
[394766324,1763932248050,-151.0,0.00021354,2]
[394766327,1763932248059,-151.0,0.00021354,2]
[394766328,1763932248068,-151.0,0.00021354,2]
[394766331,1763932248077,-151.0,0.00021354,2]
[394766333,1763932248087,-298.53099561,0.00021354,2]
[394766334,1763932248097,-424.0,0.0002137,2]
[394766336,1763932248106,-419.74231741,0.00021409,40]
[394766338,1763932248114,-432.0449204,0.00021409,40]
[394766340,1763932248124,-424.0,0.00021432,2]
[394766342,1763932248133,-424.0,0.00021473,2]
[394766344,1763932248142,-424.0,0.00021521,2]
[394766346,1763932248151,-424.0,0.00021629,2]
[394766348,1763932248161,-419.74231741,0.00021647,48]
[394766350,1763932248170,-432.0449204,0.00021647,48]
[394766353,1763932248180,-17131.16,0.000217,3]
[394766355,1763932248189,-424.0,0.00021754,2]
[394766356,1763932248198,-424.0,0.00021763,2]
[394766358,1763932248207,-432.0449204,0.00021885,56]
[394766360,1763932248217,-9900.0,0.000219,2]
[394766362,1763932248226,-9383.49799079,0.000219,2]
[394766364,1763932248235,-500.0,0.00021917,2]
[394766366,1763932248246,-569.96685924,0.00021918,2]
[394766368,1763932248256,-569.96685924,0.00021918,2]
[394766370,1763932248265,-569.96685924,0.00021918,2]
[394766372,1763932248275,-569.96685924,0.00021918,2]
[394766374,1763932248283,-569.96685924,0.00021918,2]
[394766376,1763932248293,-569.96685924,0.00021918,2]
[394766378,1763932248302,-569.96685924,0.00021918,2]
[394766380,1763932248312,-569.96685924,0.00021918,2]
[394766382,1763932248321,-569.96685924,0.00021918,2]
[394766384,1763932248330,-569.96685924,0.00021918,2]
[394766386,1763932248339,-569.96685924,0.00021918,2]
[394766388,1763932248348,-569.96685924,0.00021918,2]
[394766390,1763932248361,-569.96685924,0.00021918,2]
[394766392,1763932248370,-569.96685924,0.00021918,2]
[394766394,1763932248380,-569.96685924,0.00021918,2]
[394766396,1763932248389,-569.96685924,0.00021918,2]
[394766398,1763932248402,-569.96685924,0.00021918,2]
[394766400,1763932248412,-569.96685924,0.00021918,2]
[394766402,1763932248421,-569.96685924,0.00021918,2]
[394766404,1763932248430,-569.96685924,0.00021918,2]
[394766406,1763932248440,-569.96685924,0.00021918,2]
[394766408,1763932248450,-569.96685924,0.00021918,2]
[394766410,1763932248459,-569.96685924,0.00021918,2]
[394766412,1763932248469,-569.96685924,0.00021918,2]
[394766414,1763932248481,-569.96685924,0.00021918,2]
[394766416,1763932248491,-569.96685924,0.00021918,2]
[394766419,1763932248500,-569.96685924,0.00021918,2]
[394766420,1763932248510,-569.96685924,0.00021918,2]
[394766423,1763932248519,-569.96685924,0.00021918,2]
[394766424,1763932248528,-569.96685924,0.00021918,2]
[394766426,1763932248537,-569.96685924,0.00021918,2]
[394766429,1763932248546,-569.96685924,0.00021918,2]
[394766430,1763932248556,-569.96685924,0.00021918,2]
[394766432,1763932248565,-569.96685924,0.00021918,2]
[394766434,1763932248574,-569.96685924,0.00021918,2]
[394766436,1763932248584,-569.96685924,0.00021918,2]
[394766439,1763932248593,-569.96685924,0.00021918,2]
[394766441,1763932248603,-569.96685924,0.00021918,2]
[394766443,1763932248612,-569.96685924,0.00021918,2]
[394766445,1763932248622,-569.96685924,0.00021918,2]
[394766447,1763932248632,-569.96685924,0.00021918,2]
[394766448,1763932248641,-569.96685924,0.00021918,2]
[394766451,1763932248651,-569.96685924,0.00021918,2]
[394766452,1763932248660,-569.96685924,0.00021918,2]
[394766455,1763932248669,-569.96685924,0.00021918,2]
[394766456,1763932248679,-569.96685924,0.00021918,2]
[394766459,1763932248688,-569.96685924,0.00021918,2]
[394766461,1763932248697,-569.96685924,0.00021918,2]
[394766463,1763932248707,-569.96685924,0.00021918,2]
[394766465,1763932248716,-569.96685924,0.00021918,2]
[394766466,1763932248726,-569.96685924,0.00021918,2]
[394766469,1763932248736,-569.96685924,0.00021918,2]
[394766471,1763932248745,-569.96685924,0.00021918,2]
[394766472,1763932248755,-569.96685924,0.00021918,2]
[394766474,1763932248765,-569.96685924,0.00021918,2]
[394766477,1763932248776,-569.96685924,0.00021918,2]
[394766479,1763932248785,-569.96685924,0.00021918,2]
[394766481,1763932248794,-561.06112705,0.00021918,2]
[394766482,1763932248803,-561.06112705,0.00021918,2]
[394766484,1763932248813,-561.06112705,0.00021918,2]
[394766486,1763932248822,-561.06112705,0.00021918,2]
[394766488,1763932248831,-561.06112705,0.00021918,2]
[394766490,1763932248840,-561.06112705,0.00021918,2]
[394766493,1763932248849,-561.06112705,0.00021918,2]
[394766494,1763932248859,-561.06112705,0.00021918,2]
[394766497,1763932248869,-561.06112705,0.00021918,2]
[394766499,1763932248879,-561.06112705,0.00021918,2]
[394766501,1763932248888,-561.06112705,0.00021918,2]
[394766503,1763932248899,-561.06112705,0.00021918,2]
[394766504,1763932248908,-561.06112705,0.00021918,2]
[394766506,1763932248917,-561.06112705,0.00021918,2]
[394766508,1763932248926,-561.06112705,0.00021918,2]
[394766510,1763932248936,-561.06112705,0.00021918,2]
[394766513,1763932248946,-561.06112705,0.00021918,2]
[394766515,1763932248956,-561.06112705,0.00021918,2]
[394766517,1763932248965,-561.06112705,0.00021918,2]
[394766518,1763932248975,-561.06112705,0.00021918,2]
[394766521,1763932248985,-561.06112705,0.00021918,2]
[394766523,1763932248995,-561.06112705,0.00021918,2]
[394766525,1763932249004,-561.06112705,0.00021918,2]
[394766527,1763932249013,-561.06112705,0.00021918,2]
[394766529,1763932249022,-561.06112705,0.00021918,2]
[394766530,1763932249033,-561.06112705,0.00021918,2]
[394766533,1763932249045,-561.06112705,0.00021918,2]
[394766535,1763932249054,-561.06112705,0.00021918,2]
[394766537,1763932249064,-561.06112705,0.00021918,2]
[394766539,1763932249074,-561.06112706,0.00021918,2]
[394766540,1763932249083,-561.06112706,0.00021918,2]
[394766542,1763932249093,-561.06112705,0.00021918,2]
[394766544,1763932249102,-424.0,0.00021931,2]
[394766547,1763932249112,-300.0,0.00021973,2]
[394766549,1763932249122,-150.0,0.00021973,2]
[394766550,1763932249131,-150.0,0.00021973,2]
[394766552,1763932249140,-353.29325365,0.00022,10]
[394766554,1763932249150,-56136.91167525,0.00022,2]
[394766559,1763932249182,-9239.59067387,0.00022,2]
[394766561,1763932249194,-678.01350082,0.00022,2]
[394770251,1763932286588,1474.0,0.00014,10]
[394770596,1763933208090,-168.19308826,9.539e-05,2]
[394770605,1763933240107,-38.46169145,9.539e-05,2]
[394770606,1763933240129,-168.19308826,9.543e-05,2]
[394770607,1763933240149,-150.0,9.591e-05,2]
[394770608,1763933240171,-1380.51340861,9.736e-05,2]
[394770609,1763933240192,-163.99786798,0.00010033,2]
[394770610,1763933240212,-195.15409751,0.00010061,2]
[394770611,1763933240232,-353.29325365,0.00010468,2]
[394770612,1763933240251,-341.1139968,0.00010958,2]
[394770613,1763933240270,-177.0,0.00011591,2]
[394770614,1763933240288,-250.0,0.00012756,2]
[394770615,1763933240307,-1794.8427912,0.00013591,2]
[394770616,1763933240328,-204.0,0.00013591,2]
[394770617,1763933240351,-1200.0,0.00013697,2]
[394770618,1763933240369,-1119.66626,0.00013699,2]
[394770619,1763933240388,-163.99786796,0.00014515,2]
[394770620,1763933240408,-951.3523187,0.00015458,2]
[394770621,1763933240427,-231.0,0.00015591,2]
[394770622,1763933240447,-414.0,0.00016997,2]
[394770623,1763933240468,-300.0,0.00017524,2]
[394770624,1763933240490,-150.0,0.00017525,2]
[394770625,1763933240513,-258.0,0.00017591,2]
[394770626,1763933240535,-163.99786796,0.00018996,2]
[394770627,1763933240559,-150.02,0.00019119,2]
[394770628,1763933240583,-274.0,0.0001913,2]
[394770629,1763933240602,-261.67,0.00019526,7]
[394770630,1763933240624,-285.0,0.00019591,2]
[394770631,1763933240643,-414.0,0.00019997,2]
[394770632,1763933240664,-500.0,0.00019999,2]
[394770633,1763933240691,-500.0,0.00019999,2]
[394770634,1763933240712,-500.0,0.00019999,2]
[394770635,1763933240738,-500.0,0.00019999,2]
[394770636,1763933240760,-500.0,0.00019999,2]
[394770637,1763933240787,-500.0,0.00019999,2]
[394770638,1763933240812,-353.63741367,0.00019999,2]
[394770639,1763933240840,-500.0,0.00019999,2]
[394770640,1763933240867,-500.0,0.00019999,2]
[394770641,1763933240892,-500.0,0.00019999,2]
[394770642,1763933240917,-500.0,0.00019999,2]
[394770643,1763933240948,-172.47367906,0.00019999,2]
[394770644,1763933240974,-500.0,0.00019999,2]
[394770645,1763933241001,-500.0,0.00019999,2]
[394770646,1763933241029,-500.0,0.00019999,2]
[394770647,1763933241049,-501.43154471,0.0002,2]
[394770648,1763933241070,-3124.61653987,0.0002,2]
[394770820,1763933438188,-706.95306006,0.00017117,2]
[394770822,1763933438200,-381.18565502,0.00017117,2]
[394770877,1763933440502,-7131.02544678,0.00017117,2]
[394770879,1763933440511,-397.3393469,0.00017117,2]
[394770881,1763933440520,-211.66668424,0.00017217,2]
[394770882,1763933440529,-835.0,0.00017217,2]
[394770884,1763933440538,-150.0,0.00017242,2]
[394770886,1763933440547,-150.0,0.00017267,2]
[394770888,1763933440556,-211.66668424,0.00017267,2]
[394770890,1763933440565,-537.70625983,0.00017317,2]
[394770892,1763933440574,-211.66668424,0.00017317,2]
[394770894,1763933440583,-353.29325365,0.00017415,2]
[394770896,1763933440592,-150.0,0.00017441,2]
[394770897,1763933440601,-150.0,0.00017617,2]
[394770899,1763933440610,-150.0,0.00019218,2]
[394770901,1763933440619,-177.0,0.00019242,2]
[394770903,1763933440628,-189.7233117,0.00019644,2]
[394770905,1763933440637,-9117.71589773,0.0002,2]
[394771305,1763933445036,-453.0,0.000198,2]
[394771307,1763933445098,-378.34113547,0.000198,2]
[394771309,1763933445107,-1492.63357395,0.0002,2]
[394772924,1763934347107,-150.0,0.00016457,2]
[394772925,1763934347131,-150.0,0.00016623,2]
[394772926,1763934347155,-24.0315023,0.0001679,2]
[394772927,1763934431092,-150.0,0.00016664,2]
[394772928,1763934431113,-150.0,0.00016833,2]
[394772929,1763934431138,-801.01801783,0.00016875,2]
[394772930,1763934435092,-17.98198217,0.00016875,2]
[394772931,1763934435112,-414.0,0.00017217,2]
[394772932,1763934435134,-150.0,0.00017536,2]
[394772933,1763934435154,-353.29325365,0.00018708,2]
[394772934,1763934435176,-177.0,0.00018833,2]
[394772935,1763934435201,-150.0,0.0001913,2]
[394772936,1763934435222,-109.3391555,0.00019133,2]
[394772937,1763934444074,-889.6608445,0.00018942,2]
[394772938,1763934444097,-889.6608445,0.00019133,2]
[394772939,1763934444116,-504.38490434,0.0001999,2]
[394772940,1763934453085,-185.49421885,0.000199,2]
[394772941,1763934453108,-3046.27418998,0.0001999,2]
[394772978,1763934632545,-150.0,0.0001749,2]
[394772979,1763934632554,-857.0,0.00017684,2]
[394772981,1763934632564,-86.58,0.0001908,2]
[394773000,1763934638538,-63.42,0.0001908,2]
[394773001,1763934638548,-300.0,0.00019788,2]
[394773002,1763934638557,-1200.0,0.00019788,2]
[394773003,1763934638566,-300.0,0.00019788,2]
[394773004,1763934638575,-500.0,0.00019789,2]
[394773005,1763934638584,-500.0,0.00019789,2]
[394773006,1763934638593,-488.98030745,0.00019789,2]
[394773007,1763934638603,-500.0,0.00019789,2]
[394773008,1763934638612,-500.0,0.00019789,2]
[394773009,1763934638622,-500.4005036,0.00019789,2]
[394773011,1763934638632,-290.90074796,0.00019789,2]
[394773013,1763934638641,-500.0,0.00019789,2]
[394773015,1763934638650,-500.0,0.00019789,2]
[394773017,1763934638659,-500.0,0.00019789,2]
[394773019,1763934638668,-500.0,0.00019789,2]
[394773020,1763934638677,-500.0,0.00019789,2]
[394773021,1763934638686,-500.0,0.00019789,2]
[394773022,1763934638695,-445.98462659,0.00019789,2]
[394773023,1763934638704,-500.0,0.00019789,2]
[394773024,1763934638714,-500.0,0.00019789,2]
[394773025,1763934638723,-500.0,0.00019789,2]
[394773026,1763934638732,-500.0,0.00019789,2]
[394773027,1763934638741,-500.0,0.00019789,2]
[394773028,1763934638750,-500.0,0.00019789,2]
[394773029,1763934638759,-450.0,0.00019789,2]
[394773030,1763934638768,-231.8591684,0.00019789,2]
[394773031,1763934638779,-268.1408316,0.00019789,2]
[394773032,1763934638788,-500.0,0.00019789,2]
[394773033,1763934638798,-500.0,0.00019789,2]
[394773034,1763934638807,-500.0,0.00019789,2]
[394773035,1763934638816,-500.0,0.00019789,2]
[394773036,1763934638826,-500.0,0.00019789,2]
[394773037,1763934638835,-329.44211972,0.00019789,2]
[394773038,1763934638845,-500.0,0.00019789,2]
[394773039,1763934638855,-500.0,0.00019789,2]
[394773040,1763934638864,-500.0,0.00019789,2]
[394773041,1763934638874,-500.0,0.00019789,2]
[394773042,1763934638883,-500.0,0.00019789,2]
[394773043,1763934638892,-500.0,0.00019789,2]
[394773044,1763934638902,-500.0,0.00019789,2]
[394773045,1763934638911,-500.0,0.00019789,2]
[394773046,1763934638920,-500.0,0.00019789,2]
[394773047,1763934638929,-500.0,0.00019789,2]
[394773048,1763934638939,-500.0,0.00019789,2]
[394773049,1763934638948,-27524.71704868,0.0001979,2]
[394773050,1763934638959,-7884.71997742,0.0001979,2]
[394773051,1763934638969,-1408.21933044,0.00019889,2]
[394773052,1763934638978,-365.8565068,0.00019989,2]
[394773053,1763934638987,-500.0,0.00019989,2]
[394773054,1763934638996,-500.0,0.00019989,2]
[394773055,1763934639006,-500.0,0.00019989,2]
[394773056,1763934639015,-500.0,0.00019989,2]
[394773057,1763934639024,-500.0,0.00019989,2]
[394773058,1763934639033,-500.0,0.00019989,2]
[394773059,1763934639043,-500.0,0.00019989,2]
[394773060,1763934639052,-500.0,0.00019989,2]
[394773061,1763934639061,-275.96963904,0.00019989,2]
[394773062,1763934639071,-517.16884208,0.00019989,2]
[394773063,1763934639080,-500.0,0.00019989,2]
[394773064,1763934639090,-500.0,0.00019989,2]
[394773065,1763934639232,-500.0,0.00019989,2]
[394773066,1763934639295,-500.0,0.00019989,2]
[394773067,1763934639305,-500.0,0.00019989,2]
[394773068,1763934639315,-500.0,0.00019989,2]
[394773069,1763934639324,-500.0,0.00019989,2]
[394773070,1763934639338,-500.0,0.00019989,2]
[394773071,1763934639347,-8630.36570422,0.0001999,2]
[394773072,1763934639359,-3006.72,0.0001999,2]
[394773073,1763934639370,-2739.5793,0.0001999,2]
[394773421,1763934643960,-12310.96601675,0.0001999,2]
[394773929,1763935544132,-183.91122947,9.281e-05,2]
[394773930,1763935627089,-39.56325393,9.281e-05,2]
[394773931,1763935627109,-150.0,9.712e-05,2]
[394773932,1763935627130,-223.4744834,0.00010061,2]
[394773933,1763935627150,-417.00090435,0.00010973,2]
[394773934,1763935627169,-417.17742256,0.00010973,2]
[394773935,1763935627188,-250.0,0.00011574,2]
[394773936,1763935627209,-177.0,0.00011712,2]
[394773937,1763935627228,-2638.4654312,0.00013626,2]
[394773938,1763935627248,-1063.682947,0.00013699,2]
[394773939,1763935627268,-204.0,0.00013712,2]
[394773940,1763935627289,-290.31219129,0.00013712,2]
[394773941,1763935628119,-51.01811013,0.00013712,2]
[394773942,1763935628140,-417.17742256,0.00014201,2]
[394773943,1763935628161,-47.28473811,0.00014223,2]
[394773944,1763935635084,-150.0,9.497e-05,2]
[394773945,1763935635104,-177.0,0.00011497,2]
[394773946,1763935635125,-201.43198891,0.00013497,2]
[394773947,1763935642073,-2.56801109,0.00013497,2]
[394773948,1763935642093,-369.71616624,0.00014081,2]
[394773949,1763935642113,-369.71616624,0.00014223,2]
[394773950,1763935642135,-14.19650463,0.00015497,2]
[394773980,1763935831689,-500.49032077,0.00010973,2]
[394773982,1763935831699,-96.80843055,0.00013689,2]
[394774248,1763935837632,-316.28779733,0.00013552,2]
[394774249,1763935837642,-403.68189022,0.00013689,2]
[394774250,1763935837651,-216.80349537,0.00015189,2]
[394774251,1763935837661,-216.80349537,0.00015497,2]
[394774252,1763935837670,-500.49032077,0.00016405,2]
[394774253,1763935837679,-258.0,0.00017497,2]
[394774254,1763935837688,-150.0,0.00017544,2]
[394774255,1763935837699,-566.6,0.00017808,2]
[394774256,1763935837708,-300.0,0.00017886,2]
[394774257,1763935837717,-1200.0,0.00017886,2]
[394774258,1763935837726,-300.0,0.00017886,2]
[394774259,1763935837735,-7901.86350758,0.00017887,2]
[394774260,1763935837744,-500.0,0.00017987,2]
[394774261,1763935837753,-500.0,0.00017987,2]
[394774262,1763935837762,-500.0,0.00017987,2]
[394774263,1763935837771,-500.0,0.00017987,2]
[394774264,1763935837781,-500.0,0.00017987,2]
[394774265,1763935837791,-500.0,0.00017987,2]
[394774266,1763935837799,-430.2172245,0.00017987,2]
[394774267,1763935837808,-500.0,0.00017987,2]
[394774268,1763935837818,-500.0,0.00017987,2]
[394774269,1763935837828,-197.03662204,0.00017987,2]
[394774270,1763935837837,-500.0,0.00017987,2]
[394774271,1763935837846,-500.0,0.00017987,2]
[394774272,1763935837855,-500.0,0.00017987,2]
[394774273,1763935837864,-500.0,0.00017987,2]
[394774274,1763935837874,-500.0,0.00017987,2]
[394774275,1763935837883,-500.0,0.00017987,2]
[394774276,1763935837892,-500.0,0.00017987,2]
[394774277,1763935837901,-500.0,0.00017987,2]
[394774278,1763935837910,-500.0,0.00017987,2]
[394774279,1763935837919,-500.0,0.00017987,2]
[394774280,1763935837928,-500.0,0.00017987,2]
[394774281,1763935837937,-500.0,0.00017987,2]
[394774282,1763935837946,-500.0,0.00017987,2]
[394774283,1763935837955,-500.0,0.00017987,2]
[394774284,1763935837964,-500.0,0.00017987,2]
[394774285,1763935837973,-500.0,0.00017987,2]
[394774286,1763935837982,-500.0,0.00017987,2]
[394774287,1763935837991,-388.34047208,0.00017987,2]
[394774288,1763935838000,-500.0,0.00017987,2]
[394774289,1763935838010,-500.0,0.00017987,2]
[394774290,1763935838019,-500.0,0.00017987,2]
[394774291,1763935838029,-500.0,0.00017987,2]
[394774292,1763935838038,-500.0,0.00017987,2]
[394774293,1763935838047,-500.0,0.00017987,2]
[394774294,1763935838056,-500.0,0.00017987,2]
[394774295,1763935838065,-500.0,0.00017987,2]
[394774296,1763935838076,-500.0,0.00017987,2]
[394774297,1763935838085,-500.0,0.00017987,2]
[394774298,1763935838095,-500.0,0.00017987,2]
[394774299,1763935838104,-500.0,0.00017987,2]
[394774300,1763935838113,-500.0,0.00017987,2]
[394774301,1763935838122,-500.0,0.00017987,2]
[394774302,1763935838132,-500.0,0.00017987,2]
[394774303,1763935838141,-500.0,0.00017987,2]
[394774304,1763935838151,-500.0,0.00017987,2]
[394774305,1763935838160,-500.0,0.00017987,2]
[394774306,1763935838170,-500.0,0.00017987,2]
[394774307,1763935838180,-500.0,0.00017987,2]
[394774308,1763935838189,-500.0,0.00017987,2]
[394774309,1763935838198,-500.0,0.00017987,2]
[394774310,1763935838208,-500.0,0.00017987,2]
[394774311,1763935838217,-550.0,0.00017987,2]
[394774312,1763935838227,-500.0,0.00017987,2]
[394774313,1763935838236,-500.0,0.00017987,2]
[394774314,1763935838246,-500.0,0.00017987,2]
[394774315,1763935838255,-500.0,0.00017987,2]
[394774316,1763935838264,-500.0,0.00017987,2]
[394774317,1763935838273,-500.0,0.00018261,2]
[394774318,1763935838283,-250.0,0.00018895,2]
[394774319,1763935838292,-500.0,0.00018989,2]
[394774320,1763935838301,-330.97236396,0.00018989,2]
[394774321,1763935838310,-500.0,0.00018989,2]
[394774322,1763935838319,-500.0,0.00018989,2]
[394774323,1763935838330,-500.0,0.00018989,2]
[394774324,1763935838339,-500.0,0.00018989,2]
[394774325,1763935838349,-500.0,0.00018989,2]
[394774326,1763935838358,-500.0,0.00018989,2]
[394774327,1763935838367,-193.17874733,0.00018989,2]
[394774328,1763935838377,-500.0,0.00018989,2]
[394774329,1763935838386,-500.0,0.00018989,2]
[394774330,1763935838395,-328.51179573,0.00018989,2]
[394774331,1763935838404,-500.0,0.00018989,2]
[394774332,1763935838414,-500.0,0.00018989,2]
[394774333,1763935838424,-45888.65957368,0.0001899,2]
[394774334,1763935838446,-54111.34042632,0.0001899,2]
[394774335,1763935838455,-500.49032077,0.00019121,2]
[394774336,1763935838464,-150.0,0.00019138,2]
[394774337,1763935838474,-3670.98,0.00019476,3]
[394774338,1763935838483,-285.0,0.00019497,2]
[394774339,1763935838492,-260.5,0.00019499,7]
[394774340,1763935838502,-300.0,0.00019518,2]
[394774341,1763935838511,-1223.65,0.00019577,3]
[394774342,1763935838520,-211.0,0.00019614,2]
[394774343,1763935838530,-7896.35627916,0.00019684,2]
[394774344,1763935838539,-1992.08186567,0.00019759,2]
[394774345,1763935838548,-500.0,0.00019773,2]
[394774346,1763935838558,-509.94445956,0.00019773,2]
[394774347,1763935838567,-184.62788452,0.00019773,2]
[394774348,1763935838576,-500.0,0.00019773,2]
[394774349,1763935838585,-500.0,0.00019773,2]
[394774350,1763935838595,-500.0,0.00019773,2]
[394774351,1763935838608,-350.16109761,0.00019773,2]
[394774352,1763935838621,-500.0,0.00019773,2]
[394774353,1763935838630,-500.0,0.00019773,2]
[394774354,1763935838639,-500.0,0.00019773,2]
[394774355,1763935838649,-500.0,0.00019773,2]
[394774356,1763935838659,-505.89614439,0.00019773,2]
[394774357,1763935838669,-500.0,0.00019773,2]
[394774358,1763935838678,-500.0,0.00019773,2]
[394774359,1763935838687,-225.07445679,0.00019773,2]
[394774360,1763935838698,-263.83288475,0.00019773,2]
[394774361,1763935838708,-500.0,0.00019773,2]
[394774362,1763935838718,-890000.0,0.00019776,2]
[394774363,1763935838727,-151.0,0.00019784,2]
[394774364,1763935838736,-152.44518229,0.00019876,2]
[394774365,1763935838745,-151.98929535,0.00019876,2]
[394774366,1763935838755,-153.19973971,0.00019876,2]
[394774367,1763935838764,-155.62906489,0.00019876,2]
[394774368,1763935838773,-152.75342558,0.00019876,2]
[394774369,1763935838782,-201.26442786,0.00019876,2]
[394774370,1763935838791,-151.45815104,0.00019876,2]
[394774371,1763935838800,-151.39524175,0.00019876,2]
[394774372,1763935838809,-152.00138222,0.00019876,2]
[394774373,1763935838818,-153.82138668,0.00019876,2]
[394774374,1763935838827,-80179.414402,0.00019877,2]
[394774375,1763935838836,-199.9898153,0.00019877,2]
[394774376,1763935838846,-151.0,0.00019877,7]
[394774377,1763935838855,-151.0,0.00019921,2]
[394774378,1763935838864,-4135.57051973,0.0002,2]
[394774379,1763935838874,-198.0,0.00020058,2]
[394774380,1763935838883,-1063.682947,0.00020187,2]
[394774381,1763935838892,-160.69481077,0.0002022,2]
[394774382,1763935838902,-156.50653843,0.0002022,2]
[394774383,1763935838911,-355.189,0.00020273,2]
[394774384,1763935838921,-183.731,0.00020273,2]
[394774385,1763935838930,-1000.0,0.00020321,2]
[394774386,1763935838940,-1000.0,0.00020321,2]
[394774387,1763935838950,-1000.0,0.00020321,2]
[394774388,1763935838960,-179.21,0.00020624,2]
[394774389,1763935838970,-7901.86350757,0.00020684,2]
[394774390,1763935838981,-500.0,0.00020773,2]
[394774391,1763935838991,-500.60128405,0.00020773,2]
[394774392,1763935839001,-428.9306913,0.00020773,2]
[394774393,1763935839011,-500.0,0.00020773,2]
[394774394,1763935839020,-500.0,0.00020773,2]
[394774395,1763935839030,-514.68513811,0.00020773,2]
[394774396,1763935839039,-500.0,0.00020773,2]
[394774397,1763935839048,-169.440286,0.0002079,3]
[394774398,1763935839058,-169.890819,0.0002079,3]
[394774399,1763935839068,-156.50653843,0.0002083,17]
[394774400,1763935839081,-1000.0,0.00020868,2]
[394774401,1763935839091,-1500.0,0.00020868,2]
[394774402,1763935839100,-1500.0,0.00020868,2]
[394774403,1763935839111,-10000.0,0.00021,2]
[394774404,1763935839121,-2000.0,0.00021,2]
[394774405,1763935839130,-2200.0,0.00021182,2]
[394774406,1763935839140,-168.0,0.00021197,2]
[394774407,1763935839150,-169.890819,0.00021276,2]
[394774408,1763935839160,-2000.0,0.00021416,2]
[394774409,1763935839170,-152.061407,0.00021434,3]
[394774410,1763935839179,-156.50653843,0.0002144,32]
[394774411,1763935839188,-312.0,0.00021497,2]
[394774412,1763935839198,-424.0,0.00021636,2]
[394774413,1763935839207,-424.0,0.00021669,2]
[394774414,1763935839217,-1223.65,0.000217,3]
[394774415,1763935839227,-424.0,0.000218,2]
[394774416,1763935839236,-424.0,0.0002183,2]
[394774417,1763935839245,-500.99081109,0.00021837,2]
[394774418,1763935839255,-7896.35627916,0.00021863,2]
[394774419,1763935839265,-222.905724,0.00021863,7]
[394774420,1763935839275,-424.0,0.0002187,2]
[394774421,1763935839285,-500.0,0.00021918,2]
[394774423,1763935839295,-500.0,0.00021918,2]
[394774425,1763935839305,-500.0,0.00021918,2]
[394774427,1763935839314,-500.0,0.00021918,2]
[394774429,1763935839324,-399.15699308,0.00021918,2]
[394774431,1763935839336,-500.0,0.00021918,2]
[394774432,1763935839346,-500.0,0.00021918,2]
[394774433,1763935839356,-500.0,0.00021918,2]
[394774435,1763935839366,-500.0,0.00021918,2]
[394774437,1763935839376,-500.0,0.00021918,2]
[394774438,1763935839386,-500.0,0.00021918,2]
[394774439,1763935839395,-500.0,0.00021918,2]
[394774440,1763935839405,-2500.0,0.00021964,2]
[394774441,1763935839415,-500.0,0.00021973,2]
[394774442,1763935839425,-500.0,0.00021973,2]
[394774443,1763935839435,-500.0,0.00021973,2]
[394774444,1763935839444,-500.0,0.00021973,2]
[394774445,1763935839454,-152.061407,0.00021985,4]
[394774446,1763935839463,-263250.71415006,0.00022,2]
[394774447,1763935839473,-152.061407,0.00022,10]
[394774448,1763935839483,-224.0,0.00022,2]
[394774450,1763935839492,-156.50653843,0.0002205,48]
[394774452,1763935839502,-500.0,0.000221,2]
[394774454,1763935839511,-503.92413515,0.000221,2]